bitfinex/quotes_BTCUSD_20240901
["timestamp","ask_amount","ask_price","bid_price","bid_amount"]
[1725201572338,1.89817358,58166.0,58165.0,0.0018998]
[1725201572762,1.85990206,58166.0,58165.0,0.0028998]
[1725201572972,1.85990206,58166.0,58165.0,0.0018998]
[1725201572973,1.78655,58166.0,58165.0,0.0018998]
[1725201573391,1.79755,58166.0,58165.0,0.0028998]
[1725201573616,2.31294464,58166.0,58165.0,0.0028998]
[1725201573838,2.46165464,58166.0,58165.0,0.0028998]
[1725201574065,2.47365464,58166.0,58165.0,0.0028998]
[1725201575191,2.50063683,58166.0,58165.0,0.0028998]
[1725201575414,2.50063683,58166.0,58154.0,0.0008998]
[1725201575415,1.547586,58155.0,58154.0,0.0008998]
[1725201575620,2.140586,58155.0,58154.0,0.0008998]
[1725201576075,2.163586,58155.0,58154.0,0.0008998]
[1725201576528,2.19357304,58155.0,58154.0,0.0008998]
[1725201576766,3.33071098,58155.0,58154.0,0.0008998]
[1725201576973,1.550748,58149.0,58148.0,7e-07]
[1725201577180,2.164748,58149.0,58148.0,7e-07]
[1725201577623,2.166748,58149.0,58148.0,7e-07]
[1725201577819,2.19373777,58149.0,58148.0,7e-07]
[1725201578031,2.24806783,58149.0,58148.0,7e-07]
[1725201578666,2.2629367,58149.0,58148.0,7e-07]
[1725201578876,2.2609367,58149.0,58148.0,7e-07]
[1725201579143,2.6068807,58149.0,58148.0,7e-07]
[1725201579376,2.6048807,58149.0,58148.0,7e-07]
[1725201579604,2.6168807,58149.0,58148.0,7e-07]
[1725201580034,2.6148807,58149.0,58148.0,7e-07]
[1725201580461,2.67926386,58149.0,58148.0,7e-07]
[1725201580661,2.68126386,58149.0,58148.0,7e-07]
[1725201581071,2.69526386,58149.0,58148.0,7e-07]
[1725201581296,2.206885,58146.0,58145.0,0.0008987]
[1725201581513,4.1663778,58146.0,58145.0,0.0008987]
[1725201581727,3.9100378,58146.0,58145.0,0.0008987]
[1725201581934,4.2539988,58146.0,58145.0,0.0008987]
[1725201582150,4.2539988,58146.0,58145.0,7e-07]
[1725201582393,4.2539988,58146.0,58112.0,0.008976]
[1725201582394,0.003,58128.0,58112.0,0.008976]
[1725201582628,0.860392,58113.0,58112.0,0.008976]
[1725201582866,0.91077516,58113.0,58112.0,0.008976]
[1725201583094,0.860392,58113.0,58112.0,0.008976]
[1725201583531,0.91077516,58113.0,58112.0,0.008976]
[1725201584600,0.860392,58113.0,58112.0,0.008976]
[1725201584816,0.344127,58118.0,58113.0,0.2804]
[1725201585060,0.344127,58118.0,58113.0,0.2794]
[1725201585061,0.172073,58115.0,58113.0,0.2794]
[1725201585264,0.344127,58118.0,58113.0,0.2794]
[1725201585699,0.6571,58123.0,58113.0,0.2794]
[1725201585908,0.1,58122.0,58115.0,0.002]
[1725201586303,0.4662,58129.0,58115.0,0.002]
[1725201586304,0.172058,58120.0,58118.0,0.002]
[1725201586752,0.4662,58129.0,58123.0,0.172047]
[1725201587020,0.4662,58129.0,58124.0,0.001]
[1725201587021,0.344062,58129.0,58124.0,0.001]
[1725201587231,0.172041,58126.0,58124.0,0.001]
[1725201587483,0.172043,58125.0,58124.0,0.001]
[1725201587703,0.644132,58135.0,58119.0,0.001]
[1725201587704,0.344101,58123.0,58119.0,0.001]
[1725201587921,0.172048,58123.0,58122.0,0.001]
[1725201588127,0.172048,58123.0,58122.0,0.2794]
[1725201588336,0.172045,58125.0,58122.0,0.2794]
[1725201588546,0.344084,58126.0,58122.0,0.2794]
[1725201588761,0.02699534,58127.0,58123.0,0.172047]
[1725201589464,0.19903234,58127.0,58123.0,0.171047]
[1725201589869,0.172041,58126.0,58122.0,0.2794]
[1725201590087,0.02699534,58127.0,58122.0,0.2794]
[1725201590298,0.02699534,58127.0,58123.0,0.1879]
[1725201590750,0.02699534,58127.0,58123.0,0.359948]
[1725201591226,0.19903234,58127.0,58123.0,0.359948]
[1725201591440,0.20003234,58127.0,58123.0,0.359948]
[1725201591692,0.02799534,58127.0,58123.0,0.1879]
[1725201591929,0.001,58127.0,58125.0,0.172041]
[1725201592144,0.172029,58130.0,58125.0,0.172041]
[1725201592373,0.172024,58132.0,58126.0,0.172038]
[1725201592627,0.1,58138.0,58125.0,0.0034408]
[1725201592835,0.344,58140.0,58134.0,0.172015]
[1725201593061,0.344,58140.0,58129.0,0.344059]
[1725201593062,0.343971,58145.0,58130.0,0.0034403]
[1725201593273,0.172005,58138.0,58131.0,0.287]
[1725201593514,0.344027,58135.0,58131.0,0.287]
[1725201593726,0.172022,58132.0,58131.0,0.287]
[1725201594415,0.344033,58134.0,58123.0,0.531993]
[1725201594618,0.344033,58134.0,58123.0,0.1879]
[1725201594619,0.172045,58124.0,58123.0,0.1879]
[1725201594867,0.002,58134.0,58122.0,0.2878998]
[1725201594868,0.516145,58123.0,58122.0,0.0008998]
[1725201595086,0.172048,58123.0,58122.0,0.0008998]
[1725201595522,0.1973,58135.0,58122.0,0.0008998]
[1725201595523,0.344065,58129.0,58122.0,0.0008998]
[1725201595756,0.172038,58127.0,58122.0,0.1729508]
[1725201596217,0.173048,58123.0,58122.0,0.0008998]
[1725201597082,0.001,58123.0,58122.0,0.0008998]
[1725201597325,0.001,58123.0,58122.0,0.5170538]
[1725201597553,0.001,58123.0,58122.0,0.8611568]
[1725201597797,0.19901783,58131.0,58126.0,0.172039]
[1725201598048,0.172028,58130.0,58124.0,0.172043]
[1725201598277,0.173032,58129.0,58124.0,0.172043]
[1725201598524,0.172032,58129.0,58124.0,0.172043]
[1725201598757,0.172032,58129.0,58125.0,0.171042]
[1725201599016,0.02699283,58131.0,58127.0,0.172035]
[1725201599256,0.02699283,58131.0,58125.0,0.344083]
[1725201599257,0.19901783,58131.0,58125.0,0.344083]
[1725201599501,0.173028,58130.0,58126.0,0.172039]
[1725201599710,0.173028,58130.0,58125.0,0.172042]
[1725201599931,0.173028,58130.0,58122.0,0.4625498]
[1725201599932,0.172038,58127.0,58122.0,0.4625498]
[1725201600140,0.172038,58127.0,58122.0,0.2904998]
[1725201600141,0.172045,58125.0,58122.0,0.2904998]
[1725201600372,0.172048,58123.0,58122.0,0.0008998]
[1725201600582,0.516145,58123.0,58122.0,0.0008998]
[1725201600998,0.860242,58123.0,58122.0,0.0008998]
[1725201602112,0.861242,58123.0,58122.0,0.0008998]
[1725201602322,1.205339,58123.0,58122.0,0.0008998]
[1725201603013,1.3732329,58123.0,58122.0,0.0008998]
[1725201604586,0.861242,58123.0,58122.0,0.0008998]
[1725201605649,0.860242,58123.0,58122.0,0.0008998]
[1725201605877,0.516145,58123.0,58122.0,0.0008998]
[1725201606097,0.01,58123.0,58122.0,0.3703508]
[1725201606299,0.01,58123.0,58122.0,0.7144538]
[1725201606502,0.01,58123.0,58122.0,1.0585568]
[1725201606708,0.011,58123.0,58122.0,0.7144538]
[1725201608748,0.011,58123.0,58122.0,1.0585568]
[1725201609001,0.011,58123.0,58122.0,0.7144538]
[1725201609782,0.011,58123.0,58122.0,1.0585568]
[1725201610191,0.011,58123.0,58122.0,0.7144538]
[1725201610586,0.000818,58124.0,58123.0,0.172048]
[1725201610735,0.000818,58124.0,58123.0,0.171048]
[1725201610950,0.000818,58124.0,58123.0,0.859242]
[1725201611151,0.000818,58124.0,58123.0,1.477639]
[1725201611381,0.000818,58124.0,58123.0,2.021336]
[1725201611580,0.000818,58124.0,58123.0,2.144336]
[1725201612164,0.67432186,58148.0,58142.0,0.17199]
[1725201612366,0.50234586,58148.0,58143.0,0.2743]
[1725201612564,0.171973,58149.0,58143.0,0.2743]
[1725201612791,0.343929,58152.0,58139.0,0.2743]
[1725201612991,0.343929,58152.0,58133.0,0.344037]
[1725201612992,0.172006,58138.0,58135.0,0.2743]
[1725201613164,0.343972,58145.0,58135.0,0.2733]
[1725201613389,0.343989,58142.0,58135.0,0.2733]
[1725201613767,0.172007,58138.0,58135.0,0.2733]
[1725201614048,0.172,58140.0,58135.0,0.2733]
[1725201614256,0.172,58140.0,58135.0,0.445312]
[1725201614464,0.002,58138.0,58135.0,0.445312]
[1725201614892,0.002,58138.0,58135.0,0.2733]
[1725201615102,0.172015,58135.0,58130.0,0.172027]
[1725201615307,0.172009,58137.0,58131.0,0.172025]
[1725201615514,0.172009,58137.0,58132.0,0.172021]
[1725201615693,0.172009,58137.0,58133.0,0.172018]
[1725201616342,0.004,58140.0,58133.0,0.2846]
[1725201616549,0.004,58140.0,58134.0,0.03224392]
[1725201616754,0.004,58140.0,58135.0,0.344025]
[1725201616933,0.001,58137.0,58136.0,0.172009]
[1725201617141,0.343977,58144.0,58136.0,0.34402]
[1725201617363,0.171989,58143.0,58138.0,0.172004]
[1725201617576,0.004,58140.0,58138.0,0.172004]
[1725201617783,0.004,58140.0,58135.0,0.344025]
[1725201617991,0.004,58140.0,58139.0,0.172001]
[1725201618200,0.004,58140.0,58139.0,0.516004]
[1725201619091,0.1989707,58145.0,58139.0,0.516004]
[1725201619092,0.1989707,58145.0,58140.0,0.171996]
[1725201619301,0.0269867,58145.0,58144.0,0.171986]
[1725201619549,0.0269867,58145.0,58144.0,0.1890003]
[1725201619774,0.171972,58149.0,58145.0,0.171982]
[1725201619985,0.19895321,58151.0,58146.0,0.171979]
[1725201620238,0.171972,58149.0,58147.0,0.0171979]
[1725201620446,0.171972,58149.0,58142.0,0.343985]
[1725201620447,0.02698521,58151.0,58150.0,0.171969]
[1725201620877,0.02698521,58151.0,58150.0,0.161969]
[1725201621094,0.14755099,58153.0,58150.0,0.161969]
[1725201621300,0.14755099,58153.0,58148.0,0.343949]
[1725201621301,0.14755099,58153.0,58152.0,0.171963]
[1725201621973,0.14755099,58153.0,58152.0,0.515889]
[1725201622189,0.14755099,58153.0,58152.0,0.859815]
[1725201622409,0.14755099,58153.0,58152.0,0.515889]
[1725201622617,0.14755099,58153.0,58152.0,0.501889]
[1725201622827,0.14755099,58153.0,58152.0,0.5473709]
[1725201623044,0.14755099,58153.0,58152.0,0.4880449]
[1725201623276,0.15255099,58153.0,58152.0,0.4880449]
[1725201623974,0.15255099,58153.0,58152.0,0.442563]
[1725201625269,0.40257062,58157.0,58152.0,0.2846]
[1725201625885,0.40257062,58157.0,58154.0,0.343913]
[1725201626108,0.40257062,58157.0,58156.0,0.171951]
[1725201626873,0.40257062,58157.0,58146.0,0.1998]
[1725201626874,0.343918,58154.0,58146.0,0.1998]
[1725201627119,0.343918,58154.0,58147.0,0.171977]
[1725201627120,0.171964,58152.0,58147.0,0.171977]
[1725201627336,0.343918,58154.0,58148.0,0.171972]
[1725201627337,0.171958,58154.0,58148.0,0.171972]
[1725201627549,0.171958,58154.0,58146.0,0.1998]
[1725201627550,0.171954,58155.0,58150.0,0.456567]
[1725201627756,0.40257062,58157.0,58150.0,0.2846]
[1725201627959,0.171955,58155.0,58150.0,0.456567]
[1725201628167,0.57452062,58157.0,58152.0,0.17196]
[1725201628392,0.40257062,58157.0,58153.0,0.171958]
[1725201628598,0.40257062,58157.0,58154.0,0.171956]
[1725201628777,0.40257062,58157.0,58150.0,0.2846]
[1725201629015,0.40257062,58157.0,58152.0,0.343924]
[1725201629227,0.40257062,58157.0,58155.0,0.171951]
[1725201629435,0.40257062,58157.0,58153.0,0.0034388]
[1725201629645,0.57451862,58157.0,58153.0,0.1753978]
[1725201630276,0.40257062,58157.0,58154.0,0.171956]
[1725201630482,0.40357062,58157.0,58153.0,0.00343882]
[1725201630691,0.57451962,58157.0,58153.0,0.17539782]
[1725201630917,0.171951,58156.0,58153.0,0.00343882]
[1725201631123,0.171951,58156.0,58150.0,0.2846]
[1725201631345,0.40357062,58157.0,58152.0,0.171961]
[1725201631576,0.171951,58156.0,58151.0,0.171965]
[1725201631755,0.171956,58155.0,58150.0,0.2846]
[1725201631990,0.171957,58154.0,58151.0,0.0628545]
[1725201632202,0.171958,58154.0,58151.0,0.0628545]
[1725201632419,0.171958,58154.0,58150.0,0.456568]
[1725201632849,0.171961,58153.0,58150.0,0.2846]
[1725201633027,0.171964,58152.0,58147.0,0.171975]
[1725201633504,0.171958,58154.0,58151.0,0.003]
[1725201633909,0.171958,58154.0,58149.0,0.171971]
[1725201634158,0.171958,58154.0,58147.0,0.343953]
[1725201634159,0.171967,58151.0,58150.0,0.004]
[1725201634384,0.859831,58151.0,58150.0,0.004]
[1725201634587,0.859831,58151.0,58141.0,0.1833]
[1725201634588,0.171991,58143.0,58141.0,0.1833]
[1725201634883,0.171991,58143.0,58142.0,0.04729]
[1725201635093,0.343952,58148.0,58141.0,0.1833]
[1725201635273,0.171983,58146.0,58141.0,0.1833]
[1725201635505,0.54944917,58153.0,58141.0,0.1833]
[1725201635681,0.171981,58146.0,58141.0,0.35873251]
[1725201635943,0.343926,58152.0,58151.0,0.002]
[1725201636152,0.343865,58163.0,58154.0,0.1806]
[1725201636363,0.17194,58160.0,58154.0,0.1806]
[1725201636572,0.17194,58160.0,58155.0,0.171952]
[1725201636785,0.68773,58163.0,58154.0,0.1806]
[1725201636996,0.343844,58166.0,58151.0,0.2866]
[1725201637205,0.171963,58152.0,58151.0,0.2906]
[1725201637432,0.171963,58152.0,58151.0,0.004]
[1725201637663,0.515889,58152.0,58151.0,0.004]
[1725201637896,0.515889,58152.0,58143.0,0.2866]
[1725201637897,0.171975,58148.0,58143.0,0.458589]
[1725201638859,0.171978,58147.0,58143.0,0.458589]
[1725201639334,0.343945,58149.0,58143.0,0.2866]
[1725201639602,0.343954,58148.0,58139.0,0.458598]
[1725201639853,0.1991,58154.0,58141.0,0.343989]
[1725201639854,0.343938,58151.0,58141.0,0.343989]
[1725201640100,0.1991,58154.0,58143.0,0.171988]
[1725201640101,0.171978,58147.0,58143.0,0.171988]
[1725201640328,0.171978,58147.0,58141.0,0.171993]
[1725201641307,0.515936,58147.0,58141.0,0.171993]
[1725201641561,0.171982,58146.0,58141.0,0.171993]
[1725201642029,0.171982,58146.0,58141.0,0.181993]
[1725201642732,0.171982,58146.0,58141.0,0.171993]
[1725201643212,0.171982,58146.0,58141.0,0.182993]
[1725201643489,0.1991,58154.0,58141.0,0.011]
[1725201643709,0.171981,58146.0,58142.0,0.171991]
[1725201644186,0.343934,58151.0,58142.0,0.171991]
[1725201644187,0.171972,58149.0,58144.0,0.171986]
[1725201644444,0.171972,58149.0,58145.0,0.171983]
[1725201644955,0.171972,58149.0,58143.0,0.343978]
[1725201644956,0.343909,58155.0,58148.0,0.171973]
[1725201645178,0.171958,58154.0,58149.0,0.0171973]
[1725201645428,0.171961,58153.0,58149.0,0.0171973]
[1725201645885,0.171963,58152.0,58149.0,0.0171973]
[1725201646126,0.171963,58152.0,58148.0,0.171973]
[1725201646411,0.171973,58149.0,58143.0,0.343977]
[1725201646692,0.40338862,58157.0,58144.0,0.171985]
[1725201646937,0.171972,58149.0,58144.0,0.171985]
[1725201647451,0.171975,58148.0,58144.0,0.171985]
[1725201647889,0.171971,58150.0,58145.0,0.171983]
[1725201648121,0.171971,58150.0,58149.0,0.002]
[1725201648375,0.171971,58150.0,58149.0,0.017398]
[1725201649633,0.343917,58154.0,58149.0,0.017398]
[1725201649882,0.171964,58152.0,58147.0,0.171977]
[1725201650374,0.171966,58151.0,58144.0,0.343968]
[1725201650605,0.343914,58155.0,58140.0,0.343993]
[1725201650843,0.171978,58147.0,58143.0,0.171989]
[1725201651073,0.171981,58146.0,58141.0,0.6483918]
[1725201651324,0.171981,58146.0,58142.0,0.171991]
[1725201651842,0.171981,58146.0,58141.0,0.0008998]
[1725201651843,0.02697815,58156.0,58149.0,0.1937]
[1725201652068,0.171944,58159.0,58151.0,0.343931]
[1725201652278,0.343858,58164.0,58156.0,0.171951]
[1725201652491,0.343876,58161.0,58151.0,0.343931]
[1725201652699,0.171947,58158.0,58153.0,0.17196]
[1725201652908,0.57533662,58157.0,58153.0,0.17196]
[1725201653131,0.171953,58156.0,58151.0,0.171964]
[1725201653345,0.171953,58156.0,58152.0,0.171962]
[1725201653768,0.40338862,58157.0,58152.0,0.171962]
[1725201654187,0.57533762,58157.0,58152.0,0.171962]
[1725201654397,0.57533762,58157.0,58153.0,0.17196]
[1725201654609,0.40338862,58157.0,58152.0,0.343922]
[1725201654821,0.40338862,58157.0,58156.0,0.171951]
[1725201655501,0.40338862,58157.0,58154.0,0.171955]
[1725201655711,0.74728562,58157.0,58150.0,0.283]
[1725201655924,0.171951,58156.0,58150.0,0.283]
[1725201656119,0.171951,58156.0,58153.0,0.012]
[1725201656349,0.171957,58154.0,58153.0,0.012]
[1725201656558,0.171957,58154.0,58146.0,0.17198]
[1725201656559,0.803914,58154.0,58146.0,0.17198]
[1725201656803,0.17197,58150.0,58149.0,0.0008998]
[1725201657444,0.515908,58150.0,58149.0,0.0008998]
[1725201658312,0.859846,58150.0,58149.0,0.0008998]
[1725201658953,1.203784,58150.0,58149.0,0.0008998]
[1725201659166,1.663784,58150.0,58149.0,0.0008998]
[1725201659387,1.663784,58150.0,58149.0,0.0148998]
[1725201660439,1.663784,58150.0,58149.0,0.0008998]
[1725201660751,1.053246,58150.0,58149.0,0.0008998]
[1725201661604,0.709308,58150.0,58149.0,0.0008998]
[1725201662255,0.708308,58150.0,58149.0,0.0008998]
[1725201662689,0.708308,58150.0,58149.0,0.0038998]
[1725201663077,1.052246,58150.0,58149.0,0.0038998]
[1725201663320,0.708308,58150.0,58149.0,0.0038998]
[1725201663536,1.052246,58150.0,58149.0,0.0038998]
[1725201663752,0.36437,58150.0,58149.0,0.0038998]
[1725201663959,0.171969,58150.0,58149.0,0.0038998]
[1725201664801,0.515907,58150.0,58149.0,0.0038998]
[1725201665004,0.171969,58150.0,58149.0,0.0038998]
[1725201666068,0.515907,58150.0,58149.0,0.0038998]
[1725201667542,1.319845,58150.0,58149.0,0.0038998]
[1725201667749,1.663783,58150.0,58149.0,0.0038998]
[1725201669488,1.71695645,58150.0,58149.0,0.0038998]
[1725201670513,2.16089445,58150.0,58149.0,0.0038998]
[1725201671244,2.52584286,58150.0,58149.0,0.0038998]
[1725201671484,2.54884286,58150.0,58149.0,0.0038998]
[1725201671731,2.5672642,58150.0,58149.0,0.0038998]
[1725201671971,2.66977847,58150.0,58149.0,0.0038998]
[1725201672208,3.33037541,58150.0,58149.0,0.0038998]
[1725201672437,3.12001841,58150.0,58149.0,0.0038998]
[1725201672674,3.12002729,58150.0,58149.0,0.0038998]
[1725201672929,3.14361457,58150.0,58149.0,0.0008998]
[1725201673161,3.11796547,58150.0,58149.0,0.0008998]
[1725201673422,3.0206782,58150.0,58149.0,0.0018998]
[1725201673656,3.0176782,58150.0,58149.0,0.0008998]
[1725201673891,3.11996547,58150.0,58149.0,0.0008998]
[1725201674157,3.11996547,58150.0,58141.0,0.0008998]
[1725201674158,1.549932,58142.0,58141.0,0.0008998]
[1725201674383,2.096832,58142.0,58141.0,0.0008998]
[1725201674662,1.750847,58142.0,58141.0,0.0008998]
[1725201674900,2.094832,58142.0,58141.0,0.0008998]
[1725201675146,2.096832,58142.0,58141.0,0.0008998]
[1725201676812,2.26538364,58142.0,58141.0,0.0008998]
[1725201677032,2.096832,58142.0,58141.0,0.0008998]
[1725201677255,2.096832,58142.0,58141.0,0.0018998]
[1725201677473,2.115832,58142.0,58141.0,0.0028998]
[1725201678101,2.14282045,58142.0,58141.0,0.0028998]
[1725201678529,2.14861102,58142.0,58141.0,0.0028998]
[1725201678756,1.80262602,58142.0,58141.0,0.0028998]
[1725201678968,1.34993545,58142.0,58141.0,0.0028998]
[1725201679850,0.90595045,58142.0,58141.0,0.0028998]
[1725201681223,1.34993545,58142.0,58141.0,0.0028998]
[1725201682012,1.322947,58142.0,58141.0,0.0028998]
[1725201682482,1.82809931,58142.0,58141.0,0.0028998]
[1725201683041,2.128332,58142.0,58141.0,0.0028998]
[1725201683294,1.784347,58142.0,58141.0,0.0028998]
[1725201685105,1.79019687,58142.0,58141.0,0.0028998]
[1725201685325,1.784347,58142.0,58141.0,0.0028998]
[1725201685767,1.503847,58142.0,58141.0,0.0028998]
[1725201685981,1.34993326,58142.0,58141.0,0.0028998]
[1725201686198,0.66196326,58142.0,58141.0,0.4736998]
[1725201686420,0.21797826,58142.0,58141.0,0.52106978]
[1725201686854,0.04598626,58142.0,58141.0,0.52106978]
[1725201687091,0.019,58142.0,58141.0,0.69306478]
[1725201687338,0.019,58142.0,58141.0,0.52106978]
[1725201688199,0.019,58142.0,58141.0,0.4716998]
[1725201688200,0.171992,58142.0,58141.0,0.4716998]
[1725201689934,0.0269827,58147.0,58142.0,0.2826]
[1725201690159,0.0269827,58147.0,58146.0,0.45458]
[1725201690369,0.0269827,58147.0,58146.0,0.2826]
[1725201691007,0.515968,58143.0,58142.0,0.2689]
[1725201691268,0.171989,58143.0,58142.0,0.2689]
[1725201691474,0.343962,58146.0,58142.0,0.2679]
[1725201691475,0.343968,58145.0,58142.0,0.2679]
[1725201691692,0.171989,58143.0,58142.0,0.2679]
[1725201692350,0.515968,58143.0,58142.0,0.2679]
[1725201692560,0.515968,58143.0,58141.0,0.0008998]
[1725201692561,0.171992,58142.0,58141.0,0.0008998]
[1725201693207,0.515977,58142.0,58141.0,0.0008998]
[1725201693809,0.171992,58142.0,58141.0,0.0008998]
[1725201694020,0.516977,58142.0,58141.0,0.0148998]
[1725201694481,0.516977,58142.0,58141.0,0.2837998]
[1725201694906,0.001,58142.0,58141.0,0.2837998]
[1725201695118,0.516977,58142.0,58141.0,0.0148998]
[1725201695932,0.860962,58142.0,58141.0,0.0148998]
[1725201696792,0.516977,58142.0,58141.0,0.0148998]
[1725201699660,0.860962,58142.0,58141.0,0.0148998]
[1725201699866,0.516977,58142.0,58141.0,0.0148998]
[1725201700729,1.204947,58142.0,58141.0,0.0148998]
[1725201700946,1.26807974,58142.0,58141.0,0.0148998]
[1725201701166,1.75177974,58142.0,58141.0,0.0148998]
[1725201701791,1.75177974,58142.0,58141.0,0.0008998]
[1725201701792,1.75077974,58142.0,58141.0,0.0008998]
[1725201702010,1.75277974,58142.0,58141.0,0.0008998]
[1725201702470,1.85277974,58142.0,58141.0,0.0008998]
[1725201703509,1.85277974,58142.0,58141.0,0.0068998]
[1725201703510,1.790647,58142.0,58141.0,0.0068998]
[1725201703714,1.504247,58142.0,58141.0,0.0008998]
[1725201703921,1.503247,58142.0,58141.0,0.0008998]
[1725201704130,1.505247,58142.0,58141.0,0.0008998]
[1725201704694,1.26603288,58142.0,58141.0,0.0008998]
[1725201704900,1.43802488,58142.0,58141.0,0.0008998]
[1725201705328,1.46501093,58142.0,58141.0,0.0008998]
[1725201706391,1.63356257,58142.0,58141.0,0.0008998]
[1725201706778,1.46501093,58142.0,58141.0,0.0008998]
[1725201708456,1.46301093,58142.0,58141.0,0.0008998]
[1725201708658,1.46501093,58142.0,58141.0,0.0008998]
[1725201711346,1.52757164,58142.0,58141.0,0.0008998]
[1725201711555,1.32827164,58142.0,58141.0,0.0008998]
[1725201711958,1.30128559,58142.0,58141.0,0.0008998]
[1725201712367,1.30328559,58142.0,58141.0,0.0008998]
[1725201715181,1.33027109,58142.0,58141.0,0.0008998]
[1725201716024,1.32827109,58142.0,58141.0,0.0008998]
[1725201717547,1.33027109,58142.0,58141.0,0.0008998]
[1725201719887,1.73284171,58142.0,58141.0,0.0008998]
[1725201720803,2.08239335,58142.0,58141.0,0.0008998]
[1725201721022,2.10621135,58142.0,58141.0,0.0008998]
[1725201721229,2.45019635,58142.0,58141.0,0.0008998]
[1725201722145,2.42321085,58142.0,58141.0,0.0008998]
[1725201722375,3.10016485,58142.0,58141.0,0.0008998]
[1725201722605,2.96982985,58142.0,58141.0,0.0008998]
[1725201722833,3.04215285,58142.0,58141.0,0.0008998]
[1725201723913,2.52685921,58142.0,58141.0,0.0008998]
[1725201724559,2.14283621,58142.0,58141.0,0.0008998]
[1725201724785,2.14483621,58142.0,58141.0,0.0008998]
[1725201724996,1.84763621,58142.0,58141.0,0.0008998]
[1725201725418,1.69362416,58142.0,58141.0,0.0008998]
[1725201728212,1.73338465,58142.0,58141.0,0.0008998]
[1725201728643,1.69362416,58142.0,58141.0,0.0008998]
[1725201730790,1.95742416,58142.0,58141.0,0.0008998]
[1725201730996,1.98042416,58142.0,58141.0,0.0008998]
[1725201731207,2.32440916,58142.0,58141.0,0.0008998]
[1725201731424,1.98042416,58142.0,58141.0,0.0008998]
[1725201731653,2.1489758,58142.0,58141.0,0.0008998]
[1725201731911,2.1469758,58142.0,58141.0,0.0008998]
[1725201732133,2.11998785,58142.0,58141.0,0.0008998]
[1725201732562,2.30098785,58142.0,58141.0,0.0008998]
[1725201734057,2.13243621,58142.0,58141.0,0.0008998]
[1725201734878,2.47642121,58142.0,58141.0,0.0008998]
[1725201735097,2.13743621,58142.0,58141.0,0.0008998]
[1725201735314,3.11462316,58142.0,58141.0,0.0008998]
[1725201736160,3.29602316,58142.0,58141.0,0.0008998]
[1725201736373,3.89546124,58142.0,58141.0,0.0008998]
[1725201736578,3.8185598,58142.0,58141.0,0.0008998]
[1725201736794,3.8165598,58142.0,58141.0,0.0008998]
[1725201737660,3.94472888,58142.0,58141.0,0.0008998]
[1725201737870,3.8165598,58142.0,58141.0,0.0008998]
[1725201738081,3.8165598,58142.0,58141.0,8e-07]
[1725201738297,3.2296618,58142.0,58141.0,8e-07]
[1725201738512,3.2296618,58142.0,58135.0,0.0008998]
[1725201738513,1.90911,58136.0,58135.0,6e-07]
[1725201738728,2.68731,58136.0,58135.0,6e-07]
[1725201738941,2.68731,58136.0,58125.0,0.0008998]
[1725201738942,1.40268,58126.0,58125.0,0.0008998]
[1725201739158,3.09021062,58126.0,58125.0,0.0008998]
[1725201739413,5.52663062,58126.0,58125.0,0.0008998]
[1725201739625,4.12572226,58126.0,58125.0,0.0008998]
[1725201739838,3.66733126,58126.0,58125.0,0.0008998]
[1725201740319,3.48593126,58126.0,58125.0,0.0008998]
[1725201740570,3.57908024,58126.0,58125.0,0.0008998]
[1725201740820,3.50231116,58126.0,58125.0,0.0008998]
[1725201741030,3.48593126,58126.0,58125.0,0.0008998]
[1725201741465,3.49793126,58126.0,58125.0,0.0008998]
[1725201741671,3.57466387,58126.0,58125.0,0.0008998]
[1725201741883,3.48593126,58126.0,58125.0,0.0008998]
[1725201742092,3.49693126,58126.0,58125.0,0.0008998]
[1725201742929,3.68427908,58126.0,58125.0,0.0008998]
[1725201743141,3.77573469,58126.0,58125.0,0.0008998]
[1725201743358,2.090933,58123.0,58122.0,6e-07]
[1725201743572,2.090933,58123.0,58110.0,0.008976]
[1725201743573,1.188435,58113.0,58110.0,0.008976]
[1725201743814,4.82211362,58113.0,58110.0,0.008976]
[1725201744056,5.06070062,58113.0,58110.0,0.008976]
[1725201744294,5.19139526,58113.0,58110.0,0.008976]
[1725201744795,4.80826826,58113.0,58110.0,0.008976]
[1725201745254,1.909924,58111.0,58110.0,0.008976]
[1725201745466,4.84719855,58111.0,58110.0,0.008976]
[1725201745698,1.35128,58107.0,58106.0,0.008998]
[1725201745947,2.483856,58107.0,58106.0,0.008998]
[1725201746195,4.733625,58107.0,58106.0,0.008998]
[1725201746677,4.76067955,58107.0,58106.0,0.008998]
[1725201746920,4.92923119,58107.0,58106.0,0.008998]
[1725201747192,1.910413,58096.0,58092.0,0.008987]
[1725201747447,1.910413,58096.0,58066.0,0.008998]
[1725201747448,0.808101,58083.0,58066.0,0.284698]
[1725201747674,2.18853962,58083.0,58066.0,0.284698]
[1725201748109,2.41563962,58083.0,58066.0,0.284698]
[1725201748322,2.326606,58083.0,58066.0,0.284698]
[1725201748548,2.117506,58083.0,58066.0,0.284698]
[1725201748769,1.928306,58083.0,58077.0,0.2757]
[1725201749020,1.75975436,58083.0,58077.0,0.2757]
[1725201750114,1.75975436,58083.0,58072.0,0.1961]
[1725201750335,1.75975436,58083.0,58072.0,0.4718]
[1725201752123,1.73273962,58083.0,58072.0,0.4718]
[1725201752575,1.73856569,58083.0,58072.0,0.4718]
[1725201753552,1.36540562,58083.0,58082.0,0.281598]
[1725201753755,1.36340562,58083.0,58082.0,0.472698]
[1725201753960,1.49994618,58083.0,58082.0,0.472698]
[1725201754163,1.49994618,58083.0,58082.0,0.008998]
[1725201754336,1.84428018,58083.0,58082.0,0.008998]
[1725201754933,1.49994618,58083.0,58082.0,0.008998]
[1725201755391,1.52696037,58083.0,58082.0,0.008998]
[1725201755577,0.70175181,58083.0,58082.0,0.008998]
[1725201755919,0.70175181,58083.0,58082.0,0.504398]
[1725201756354,0.42958481,58083.0,58082.0,0.676568]
[1725201756566,0.42958481,58083.0,58082.0,0.504398]
[1725201758286,1.21285899,58083.0,58082.0,0.504398]
[1725201758506,1.38502599,58083.0,58082.0,0.504398]